fUST/lending_fUST_20250607
["ID","MTS","AMOUNT","RATE_DAILY","PERIOD"]
[364819357,1749253843745,-440.0,0.00019452,2]
[364819359,1749253843756,-440.0,0.00019452,2]
[364819361,1749253843765,-440.0,0.00019452,2]
[364819363,1749253843774,-560.0,0.00019452,2]
[364819365,1749253843784,-440.0,0.00019452,2]
[364819368,1749253843793,-440.0,0.00019452,2]
[364819369,1749253843803,-440.0,0.00019452,2]
[364819371,1749253843812,-440.0,0.00019452,2]
[364819374,1749253843821,-440.0,0.00019452,2]
[364819375,1749253843831,-546.33,0.00019452,2]
[364819377,1749253843840,-440.0,0.00019452,2]
[364819379,1749253843850,-440.0,0.00019452,2]
[364819381,1749253843860,-320.0,0.00019452,2]
[364819383,1749253843870,-440.0,0.00019452,2]
[364819385,1749253843879,-402.44,0.00019452,2]
[364819387,1749253843889,-440.0,0.00019452,2]
[364819389,1749253843898,-571.009,0.00019452,2]
[364819392,1749253843910,-440.0,0.00019452,2]
[364819394,1749253843923,-962.98,0.00019452,2]
[364819395,1749253843932,-415.11,0.00019452,2]
[364819398,1749253843941,-440.0,0.00019452,2]
[364819399,1749253843951,-440.0,0.00019452,2]
[364819401,1749253843960,-472.23,0.00019452,2]
[364819403,1749253843969,-440.0,0.00019452,2]
[364819405,1749253843979,-453.32,0.00019452,2]
[364819407,1749253843989,-440.0,0.00019452,2]
[364819409,1749253843999,-636.91,0.00019452,2]
[364819411,1749253844008,-440.0,0.00019452,2]
[364819413,1749253844017,-440.0,0.00019452,2]
[364819415,1749253844026,-677.37,0.00019452,2]
[364819417,1749253844035,-440.0,0.00019452,2]
[364819419,1749253844044,-500.0,0.00019483,2]
[364819421,1749253844053,-500.0,0.00019532,2]
[364819423,1749253844062,-150.0,0.00019613,2]
[364819425,1749253844071,-443.25,0.00019725,2]
[364819427,1749253844081,-440.0,0.00019725,2]
[364819429,1749253844090,-440.0,0.00019725,2]
[364819432,1749253844100,-440.0,0.00019725,2]
[364819434,1749253844110,-440.0,0.00019725,2]
[364819436,1749253844119,-440.0,0.00019725,2]
[364819438,1749253844128,-116.86492794,0.00019725,2]
[364819640,1749253846105,-440.0,0.00019178,2]
[364819642,1749253846115,-440.0,0.00019178,2]
[364819644,1749253846124,-395.55507206,0.00019725,2]
[364819646,1749253846134,-1013.37,0.00019725,2]
[364819649,1749253846144,-440.0,0.00019725,2]
[364819650,1749253846153,-298.482878,0.00019726,2]
[364819652,1749253846163,-151.0,0.00019726,2]
[364819654,1749253846172,-440.0,0.00019726,2]
[364819656,1749253846183,-440.0,0.00019726,2]
[364819659,1749253846193,-440.0,0.00019726,2]
[364819660,1749253846202,-440.0,0.00019726,2]
[364819663,1749253846212,-935.78,0.00019726,2]
[364819665,1749253846221,-997.4,0.00019726,2]
[364819667,1749253846231,-440.0,0.00019726,2]
[364819669,1749253846240,-440.0,0.00019726,2]
[364819671,1749253846249,-440.0,0.00019726,2]
[364819673,1749253846259,-440.0,0.00019726,2]
[364819675,1749253846268,-440.0,0.00019726,2]
[364819677,1749253846278,-440.0,0.00019726,2]
[364819679,1749253846288,-480.18,0.00019726,2]
[364819681,1749253846298,-292.39,0.00019726,2]
[364819682,1749253846307,-460.28,0.00019726,2]
[364819684,1749253846317,-539.37,0.00019726,2]
[364819687,1749253846326,-962.98,0.00019726,2]
[364819688,1749253846336,-440.0,0.00019726,2]
[364819691,1749253846345,-472.23,0.00019726,2]
[364819693,1749253846355,-440.0,0.00019726,2]
[364819695,1749253846364,-453.32,0.00019726,2]
[364819696,1749253846373,-440.0,0.00019726,2]
[364819698,1749253846382,-636.91,0.00019726,2]
[364819700,1749253846392,-677.37,0.00019726,2]
[364819703,1749253846406,-440.0,0.00019726,2]
[364819705,1749253846415,-160.0,0.00019933,2]
[364819707,1749253846426,-423.83542519,0.00019933,2]
[364819709,1749253846435,-229.52673067,0.00019933,2]
[364819711,1749253846445,-834.50537533,0.00019933,2]
[364819713,1749253846454,-842.5625,0.00019935,2]
[364819715,1749253846463,-250.0,0.00019938,2]
[364819717,1749253846473,-500.0,0.00019999,2]
[364819719,1749253846482,-500.0,0.00019999,2]
[364819721,1749253846492,-443.25,0.00019999,2]
[364819723,1749253846502,-350.10999925,0.00019999,2]
[364819725,1749253846511,-440.0,0.00019999,2]
[364819727,1749253846521,-512.42,0.00019999,2]
[364819729,1749253846530,-1013.37,0.00019999,2]
[364819731,1749253846539,-440.0,0.00019999,2]
[364819733,1749253846549,-151.0,0.0002,2]
[364819735,1749253846558,-257.05092487,0.0002,2]
[364819737,1749253846568,-935.78,0.0002,2]
[364819739,1749253846578,-997.4,0.0002,2]
[364819741,1749253846588,-440.0,0.0002,2]
[364819743,1749253846597,-440.0,0.0002,2]
[364819745,1749253846607,-440.0,0.0002,2]
[364819747,1749253846616,-440.0,0.0002,2]
[364819749,1749253846626,-962.98,0.0002,2]
[364819751,1749253846636,-440.0,0.0002,2]
[364819753,1749253846646,-472.23,0.0002,2]
[364819755,1749253846655,-453.32,0.0002,2]
[364819757,1749253846665,-287.8,0.0002,2]
[364819759,1749253846675,-636.91,0.0002,2]
[364819761,1749253846685,-677.37,0.0002,2]
[364819763,1749253846694,-440.0,0.0002,2]
[364819766,1749253846703,-500.0,0.00020031,2]
[364819767,1749253846713,-800.0,0.00020052,2]
[364819769,1749253846722,-185.373,0.00020142,2]
[364819772,1749253846732,-318.58519,0.00020187,2]
[364819774,1749253846742,-207.4,0.00020203,2]
[364819776,1749253846751,-5000.0,0.00020203,2]
[364819778,1749253846760,-179.04975,0.00020273,2]
[364819780,1749253846769,-935.78,0.00020273,2]
[364819782,1749253846778,-443.25,0.00020273,2]
[364819784,1749253846788,-997.4,0.00020273,2]
[364819785,1749253846797,-440.0,0.00020273,2]
[364819788,1749253846806,-440.0,0.00020273,2]
[364819790,1749253846816,-512.42,0.00020273,2]
[364819792,1749253846826,-440.0,0.00020273,2]
[364819793,1749253846835,-1013.37,0.00020273,2]
[364819795,1749253846846,-962.98,0.00020273,2]
[364819798,1749253846855,-440.0,0.00020273,2]
[364819800,1749253846865,-440.0,0.00020273,2]
[364819802,1749253846874,-472.23,0.00020273,2]
[364819804,1749253846884,-453.32,0.00020273,2]
[364819806,1749253846892,-636.91,0.00020273,2]
[364819808,1749253846900,-677.37,0.00020273,2]
[364819810,1749253846912,-440.0,0.00020273,2]
[364819811,1749253846922,-935.78,0.00020547,2]
[364819814,1749253846931,-443.25,0.00020547,2]
[364819816,1749253846941,-997.4,0.00020547,2]
[364819818,1749253846950,-440.0,0.00020547,2]
[364819820,1749253846962,-440.0,0.00020547,2]
[364819822,1749253846971,-512.42,0.00020547,2]
[364819823,1749253846981,-440.0,0.00020547,2]
[364819826,1749253846992,-1013.37,0.00020547,2]
[364819828,1749253847002,-962.98,0.00020547,2]
[364819830,1749253847011,-440.0,0.00020547,2]
[364819832,1749253847020,-440.0,0.00020547,2]
[364819834,1749253847029,-472.23,0.00020547,2]
[364819836,1749253847039,-453.32,0.00020547,2]
[364819838,1749253847048,-636.91,0.00020547,2]
[364819840,1749253847059,-677.37,0.00020547,2]
[364819842,1749253847068,-440.0,0.00020547,2]
[364819844,1749253847078,-274.24,0.0002059,10]
[364819846,1749253847088,-528.07,0.000206,2]
[364819848,1749253847098,-836.5,0.000206,2]
[364819850,1749253847107,-5000.0,0.00020751,2]
[364819852,1749253847117,-626.51,0.0002082,2]
[364819854,1749253847127,-500.0,0.0002082,2]
[364819856,1749253847136,-935.78,0.00020821,2]
[364819858,1749253847145,-443.25,0.00020821,2]
[364819860,1749253847154,-997.4,0.00020821,2]
[364819862,1749253847163,-440.0,0.00020821,2]
[364819864,1749253847172,-440.0,0.00020821,2]
[364819866,1749253847182,-512.42,0.00020821,2]
[364819868,1749253847191,-440.0,0.00020821,2]
[364819870,1749253847201,-1013.37,0.00020821,2]
[364819872,1749253847210,-962.98,0.00020821,2]
[364819874,1749253847220,-440.0,0.00020821,2]
[364819876,1749253847230,-440.0,0.00020821,2]
[364819878,1749253847239,-472.23,0.00020821,2]
[364819880,1749253847249,-453.32,0.00020821,2]
[364819882,1749253847258,-636.91,0.00020821,2]
[364819884,1749253847269,-677.37,0.00020821,2]
[364819886,1749253847278,-440.0,0.00020821,2]
[364819888,1749253847288,-420.0,0.00020887,2]
[364819890,1749253847297,-868.5380825,0.000209,4]
[364819892,1749253847307,-1585.0,0.00020988,2]
[364819894,1749253847316,-868.53808222,0.00021038,4]
[364819896,1749253847326,-935.78,0.00021095,2]
[364819898,1749253847335,-443.25,0.00021095,2]
[364819900,1749253847344,-997.4,0.00021095,2]
[364819902,1749253847354,-440.0,0.00021095,2]
[364819904,1749253847363,-440.0,0.00021095,2]
[364819906,1749253847373,-512.42,0.00021095,2]
[364819908,1749253847383,-440.0,0.00021095,2]
[364819910,1749253847392,-1013.37,0.00021095,2]
[364819912,1749253847401,-962.98,0.00021095,2]
[364819914,1749253847411,-440.0,0.00021095,2]
[364819916,1749253847421,-440.0,0.00021095,2]
[364819918,1749253847432,-472.23,0.00021095,2]
[364819920,1749253847441,-453.32,0.00021095,2]
[364819922,1749253847451,-636.91,0.00021095,2]
[364819924,1749253847460,-677.37,0.00021095,2]
[364819926,1749253847469,-440.0,0.00021095,2]
[364819928,1749253847478,-150.0,0.00021121,2]
[364819930,1749253847488,-800.0,0.00021148,2]
[364819932,1749253847498,-868.53808222,0.00021176,4]
[364819934,1749253847507,-868.53808222,0.00021314,5]
[364819936,1749253847517,-430.0,0.00021368,2]
[364819938,1749253847527,-500.0,0.00021368,2]
[364819940,1749253847536,-935.78,0.00021369,2]
[364819942,1749253847547,-443.25,0.00021369,2]
[364819944,1749253847558,-997.4,0.00021369,2]
[364819959,1749253847683,-440.0,0.00021369,2]
[364819961,1749253847694,-440.0,0.00021369,2]
[364819963,1749253847703,-512.42,0.00021369,2]
[364819965,1749253847712,-440.0,0.00021369,2]
[364819967,1749253847722,-1013.37,0.00021369,2]
[364819969,1749253847731,-962.98,0.00021369,2]
[364819971,1749253847740,-440.0,0.00021369,2]
[364819973,1749253847750,-440.0,0.00021369,2]
[364819975,1749253847759,-472.23,0.00021369,2]
[364819976,1749253847769,-453.32,0.00021369,2]
[364819978,1749253847778,-636.91,0.00021369,2]
[364819981,1749253847788,-677.37,0.00021369,2]
[364819983,1749253847798,-440.0,0.00021369,2]
[364819985,1749253847808,-868.53808222,0.00021452,5]
[364819986,1749253847817,-215.0738,0.00021572,2]
[364819989,1749253847827,-868.53808222,0.0002159,5]
[364819990,1749253847837,-257.92,0.000216,2]
[364819993,1749253847846,-935.78,0.00021643,2]
[364819995,1749253847856,-443.25,0.00021643,2]
[364819997,1749253847866,-997.4,0.00021643,2]
[364819998,1749253847875,-440.0,0.00021643,2]
[364820000,1749253847884,-440.0,0.00021643,2]
[364820002,1749253847895,-512.42,0.00021643,2]
[364820005,1749253847905,-440.0,0.00021643,2]
[364820007,1749253847918,-1013.37,0.00021643,2]
[364820009,1749253847928,-962.98,0.00021643,2]
[364820011,1749253847938,-440.0,0.00021643,2]
[364820013,1749253847948,-440.0,0.00021643,2]
[364820014,1749253847958,-472.23,0.00021643,2]
[364820016,1749253847968,-453.32,0.00021643,2]
[364820018,1749253847977,-636.91,0.00021643,2]
[364820020,1749253847987,-677.37,0.00021643,2]
[364820022,1749253847998,-440.0,0.00021643,2]
[364820024,1749253848007,-868.53808222,0.00021728,5]
[364820026,1749253848017,-500.0,0.00021825,2]
[364820028,1749253848026,-490.06463855,0.00021825,2]
[364820031,1749253848037,-868.53808222,0.00021866,6]
[364820032,1749253848049,-836.5,0.000219,2]
[364820034,1749253848059,-201.89810564,0.00021917,2]
[364820037,1749253848069,-935.78,0.00021917,2]
[364820039,1749253848079,-400.0,0.00021917,2]
[364820040,1749253848089,-400.0,0.00021917,2]
[364820042,1749253848098,-192.54829244,0.00021917,2]
[364820044,1749253848108,-443.25,0.00021917,2]
[364820047,1749253848118,-997.4,0.00021917,2]
[364820049,1749253848128,-440.0,0.00021917,2]
[364820050,1749253848138,-440.0,0.00021917,2]
[364820052,1749253848147,-512.42,0.00021917,2]
[364820054,1749253848157,-440.0,0.00021917,2]
[364820056,1749253848168,-500.0,0.00021917,2]
[364820058,1749253848178,-500.0,0.00021917,2]
[364820061,1749253848188,-500.0,0.00021917,2]
[364820062,1749253848198,-581.58,0.00021917,2]
[364820064,1749253848209,-1013.37,0.00021917,2]
[364820066,1749253848218,-962.98,0.00021917,2]
[364820069,1749253848228,-440.0,0.00021917,2]
[364820070,1749253848238,-440.0,0.00021917,2]
[364820072,1749253848247,-472.23,0.00021917,2]
[364820074,1749253848257,-453.32,0.00021917,2]
[364820076,1749253848267,-636.91,0.00021917,2]
[364820079,1749253848278,-677.37,0.00021917,2]
[364820081,1749253848287,-440.0,0.00021917,2]
[364820082,1749253848297,-528.07,0.00022,7]
[364820084,1749253848307,-868.53808222,0.00022003,6]
[364820086,1749253848316,-868.53808222,0.00022141,6]
[364820088,1749253848326,-935.78,0.00022191,2]
[364820091,1749253848336,-443.25,0.00022191,2]
[364820092,1749253848346,-997.4,0.00022191,2]
[364820095,1749253848356,-440.0,0.00022191,2]
[364820096,1749253848366,-440.0,0.00022191,2]
[364820098,1749253848376,-512.42,0.00022191,2]
[364820100,1749253848386,-440.0,0.00022191,2]
[364820102,1749253848396,-1013.37,0.00022191,2]
[364820104,1749253848406,-962.98,0.00022191,2]
[364820106,1749253848416,-440.0,0.00022191,2]
[364820108,1749253848428,-440.0,0.00022191,2]
[364820110,1749253848438,-472.23,0.00022191,2]
[364820112,1749253848448,-453.32,0.00022191,2]
[364820114,1749253848458,-636.91,0.00022191,2]
[364820116,1749253848468,-677.37,0.00022191,2]
[364820118,1749253848478,-440.0,0.00022191,2]
[364820120,1749253848487,-160.73939313,0.00022219,2]
[364820122,1749253848497,-800.0,0.00022244,2]
[364820124,1749253848507,-868.53808222,0.00022279,6]
[364820126,1749253848517,-512.93391595,0.00022373,2]
[364820128,1749253848527,-600.0,0.000224,2]
[364820130,1749253848536,-160.73939313,0.00022411,2]
[364820132,1749253848546,-962.0,0.00022415,2]
[364820134,1749253848557,-868.53808222,0.00022417,7]
[364820136,1749253848567,-935.78,0.00022465,2]
[364820138,1749253848576,-443.25,0.00022465,2]
[364820140,1749253848586,-997.4,0.00022465,2]
[364820142,1749253848596,-440.0,0.00022465,2]
[364820144,1749253848605,-440.0,0.00022465,2]
[364820146,1749253848616,-512.42,0.00022465,2]
[364820148,1749253848626,-440.0,0.00022465,2]
[364820150,1749253848636,-1013.37,0.00022465,2]
[364820152,1749253848646,-962.98,0.00022465,2]
[364820154,1749253848655,-440.0,0.00022465,2]
[364820156,1749253848666,-440.0,0.00022465,2]
[364820158,1749253848676,-472.23,0.00022465,2]
[364820160,1749253848689,-453.32,0.00022465,2]
[364820162,1749253848699,-636.91,0.00022465,2]
[364820164,1749253848709,-677.37,0.00022465,2]
[364820166,1749253848719,-440.0,0.00022465,2]
[364820168,1749253848729,-813.797551,0.0002254,3]
[364820170,1749253848739,-868.53808222,0.00022555,7]
[364820172,1749253848749,-394.70059416,0.00022558,2]
[364820174,1749253848759,-160.73939313,0.00022575,2]
[364820176,1749253848768,-150.0,0.0002263,2]
[364820177,1749253848777,-364.7156952,0.0002263,2]
[364820179,1749253848787,-364.7156952,0.0002263,2]
[364820181,1749253848796,-364.7156952,0.0002263,2]
[364820183,1749253848806,-868.53808222,0.00022693,7]
[364820185,1749253848816,-500.0,0.00022708,2]
[364820187,1749253848826,-935.78,0.00022739,2]
[364820189,1749253848835,-443.25,0.00022739,2]
[364820191,1749253848845,-997.4,0.00022739,2]
[364820193,1749253848855,-363.72,0.00022739,2]
[364820195,1749253848864,-440.0,0.00022739,2]
[364820197,1749253848874,-512.42,0.00022739,2]
[364820199,1749253848883,-440.0,0.00022739,2]
[364820201,1749253848893,-1013.37,0.00022739,2]
[364820203,1749253848902,-962.98,0.00022739,2]
[364820205,1749253848913,-440.0,0.00022739,2]
[364820207,1749253848923,-440.0,0.00022739,2]
[364820209,1749253848934,-472.23,0.00022739,2]
[364820211,1749253848944,-453.32,0.00022739,2]
[364820213,1749253848954,-636.91,0.00022739,2]
[364820214,1749253848963,-677.37,0.00022739,2]
[364820216,1749253848972,-440.0,0.00022739,2]
[364820219,1749253848982,-160.73939313,0.0002274,2]
[364820220,1749253848993,-587.0,0.00022763,2]
[364820222,1749253849003,-800.0,0.00022781,2]
[364820224,1749253849012,-868.53808222,0.00022831,8]
[364820226,1749253849022,-230.8526341,0.00022888,2]
[364820228,1749253849031,-800.0,0.00022898,2]
[364820230,1749253849040,-411.95451616,0.000229,3]
[364820232,1749253849049,-160.73939313,0.00022904,2]
[364820234,1749253849058,-240.96720223,0.00022915,2]
[364820236,1749253849067,-800.0,0.00022924,2]
[364820238,1749253849076,-223.0315306,0.00022941,2]
[364820240,1749253849085,-1200.0,0.00022948,2]
[364820242,1749253849094,-868.53808222,0.00022969,8]
[364820244,1749253849103,-32665.93998328,0.00023,2]
[364820246,1749253849113,-4785.75403862,0.00023,7]
[364820248,1749253849124,-151.0,0.00023,7]
[364820250,1749253849133,-1108.630773,0.00023,2]
[364820252,1749253849142,-798.0,0.00023013,7]
[364820254,1749253849152,-798.0,0.00023013,7]
[364820256,1749253849161,-151.0,0.00023013,7]
[364820258,1749253849171,-935.78,0.00023013,2]
[364820260,1749253849182,-443.25,0.00023013,2]
[364820262,1749253849191,-997.4,0.00023013,2]
[364820264,1749253849200,-440.0,0.00023013,2]
[364820266,1749253849210,-512.42,0.00023013,2]
[364820268,1749253849219,-440.0,0.00023013,2]
[364820270,1749253849228,-1013.37,0.00023013,2]
[364820272,1749253849238,-962.98,0.00023013,2]
[364820274,1749253849248,-440.0,0.00023013,2]
[364820276,1749253849258,-440.0,0.00023013,2]
[364820278,1749253849267,-472.23,0.00023013,2]
[364820280,1749253849276,-453.32,0.00023013,2]
[364820282,1749253849286,-636.91,0.00023013,2]
[364820284,1749253849295,-677.37,0.00023013,2]
[364820285,1749253849304,-440.0,0.00023013,2]
[364820287,1749253849313,-160.73939313,0.00023068,2]
[364820289,1749253849323,-528.07,0.000231,7]
[364820291,1749253849332,-836.5,0.000231,7]
[364820293,1749253849341,-868.53808222,0.00023107,8]
[364820295,1749253849350,-206.0,0.0002312,2]
[364820297,1749253849360,-160.73939313,0.00023233,2]
[364820299,1749253849369,-868.53808222,0.00023245,8]
[364820301,1749253849380,-200.0,0.00023287,2]
[364820303,1749253849389,-200.0,0.00023287,2]
[364820305,1749253849399,-200.0,0.00023287,2]
[364820307,1749253849409,-200.0,0.00023287,2]
[364820309,1749253849419,-200.0,0.00023287,2]
[364820311,1749253849428,-200.0,0.00023287,2]
[364820313,1749253849437,-200.0,0.00023287,2]
[364820315,1749253849447,-200.0,0.00023287,2]
[364820317,1749253849456,-200.0,0.00023287,2]
[364820319,1749253849466,-200.0,0.00023287,2]
[364820321,1749253849475,-200.0,0.00023287,2]
[364820323,1749253849485,-200.0,0.00023287,2]
[364820325,1749253849496,-200.0,0.00023287,2]
[364820327,1749253849505,-200.0,0.00023287,2]
[364820329,1749253849515,-200.0,0.00023287,2]
[364820331,1749253849525,-200.0,0.00023287,2]
[364820333,1749253849535,-935.78,0.00023287,2]
[364820335,1749253849544,-443.25,0.00023287,2]
[364820337,1749253849554,-997.4,0.00023287,2]
[364820339,1749253849563,-440.0,0.00023287,2]
[364820341,1749253849572,-512.42,0.00023287,2]
[364820343,1749253849582,-440.0,0.00023287,2]
[364820344,1749253849591,-1013.37,0.00023287,2]
[364820345,1749253849600,-962.98,0.00023287,2]
[364820346,1749253849610,-440.0,0.00023287,2]
[364820347,1749253849620,-440.0,0.00023287,2]
[364820348,1749253849629,-472.23,0.00023287,2]
[364820349,1749253849638,-453.32,0.00023287,2]
[364820350,1749253849648,-636.91,0.00023287,2]
[364820351,1749253849657,-677.37,0.00023287,2]
[364820352,1749253849666,-440.0,0.00023287,2]
[364820353,1749253849675,-800.0,0.0002334,2]
[364820354,1749253849685,-868.53808222,0.00023383,9]
[364820355,1749253849694,-151.0,0.000234,10]
[364820356,1749253849703,-160.73939313,0.00023425,2]
[364820357,1749253849712,-206.0,0.0002349,2]
[364820358,1749253849721,-1800.0,0.00023496,2]
[364820359,1749253849730,-868.53808222,0.00023521,9]
[364820360,1749253849739,-2062.56683271,0.00023561,3]
[364820361,1749253849748,-200.0,0.00023561,2]
[364820362,1749253849757,-935.78,0.00023561,2]
[364820363,1749253849766,-443.25,0.00023561,2]
[364820364,1749253849775,-997.4,0.00023561,2]
[364820365,1749253849784,-440.0,0.00023561,2]
[364820366,1749253849793,-512.42,0.00023561,2]
[364820367,1749253849802,-440.0,0.00023561,2]
[364820368,1749253849812,-1013.37,0.00023561,2]
[364820369,1749253849821,-962.98,0.00023561,2]
[364820371,1749253849830,-440.0,0.00023561,2]
[364820373,1749253849840,-440.0,0.00023561,2]
[364820375,1749253849849,-472.23,0.00023561,2]
[364820377,1749253849858,-453.32,0.00023561,2]
[364820379,1749253849867,-636.91,0.00023561,2]
[364820381,1749253849876,-677.37,0.00023561,2]
[364820383,1749253849886,-440.0,0.00023561,2]
[364820385,1749253849895,-364.7156952,0.00023589,2]
[364820387,1749253849904,-364.7156952,0.00023589,2]
[364820389,1749253849916,-364.7156952,0.00023589,2]
[364820391,1749253849926,-364.7156952,0.00023589,2]
[364820393,1749253849935,-364.7156952,0.00023589,2]
[364820395,1749253849944,-363.5094666,0.00023589,2]
[364820397,1749253849954,-600.0,0.00023605,2]
[364820399,1749253849963,-729.1633396,0.00023616,2]
[364820401,1749253849972,-868.53808222,0.00023659,9]
[364820403,1749253849982,-922.92620664,0.000237,2]
[364820405,1749253849992,-151.0,0.000237,7]
[364820407,1749253850001,-868.53808222,0.00023797,9]
[364820409,1749253850011,-282167.24532445,0.000238,3]
[364820411,1749253850027,-43687.9189761,0.000238,3]
[364820450,1749253850381,-89883.26835686,0.000238,3]
[364820452,1749253850396,-26609.34879374,0.000238,3]
[364820455,1749253850407,-2507.75,0.000238,3]
[364821100,1749253875602,150.0,0.00016948,2]
[364821101,1749254113329,311.602679,0.00013699,2]
[364821104,1749254237179,1343.0,0.00024658,120]
[364821110,1749254491662,200.0,0.00024455,120]
[364821113,1749254671795,200.0,0.00024236,120]
[364821162,1749255032450,-181.522119,0.00018344,2]
[364821164,1749255032460,-1753.0681411,0.00018627,2]
[364821166,1749255032470,-290.51752774,0.00018978,2]
[364821168,1749255032479,-610.21,0.00019168,3]
[364821170,1749255032489,-300.0,0.00019172,2]
[364821172,1749255032499,-300.0,0.00019172,2]
[364821175,1749255032518,-1200.0,0.00019172,2]
[364821177,1749255032531,-500.83744052,0.00019173,2]
[364821179,1749255032541,-500.0,0.00019173,2]
[364821181,1749255032552,-500.0,0.00019173,2]
[364821184,1749255032562,-223.35908659,0.00019173,2]
[364821186,1749255032572,-3435.30154762,0.00019176,2]
[364821188,1749255032582,-385.01081239,0.00019177,2]
[364821189,1749255032592,-292.83291929,0.00019177,2]
[364821191,1749255032602,-207.47300757,0.00019177,2]
[364821193,1749255032613,-500.0,0.00019177,2]
[364821195,1749255032623,-500.0,0.00019177,2]
[364821197,1749255032633,-628.70728269,0.00019177,2]
[364821200,1749255032643,-430.0,0.00019178,2]
[364821202,1749255032653,-450.61126204,0.00019178,2]
[364821205,1749255032663,-500.0,0.00019178,2]
[364821207,1749255032672,-316.70111321,0.00019178,2]
[364821209,1749255032682,-440.0,0.00019178,2]
[364821211,1749255032693,-440.0,0.00019178,2]
[364821213,1749255032702,-440.0,0.00019178,2]
[364821215,1749255032713,-440.0,0.00019178,2]
[364821217,1749255032725,-439.84941882,0.00019178,2]
[364821219,1749255032738,-440.0,0.00019178,2]
[364821221,1749255032749,-355.48928372,0.00019178,2]
[364821223,1749255032758,-440.0,0.00019178,2]
[364821224,1749255032768,-440.0,0.00019178,2]
[364821226,1749255032778,-440.0,0.00019178,2]
[364821228,1749255032788,-430.0,0.00019178,2]
[364821229,1749255032798,-430.0,0.00019178,2]
[364821230,1749255032809,-440.0,0.00019178,2]
[364821232,1749255032820,-430.0,0.00019178,2]
[364821233,1749255032829,-430.0,0.00019178,2]
[364821235,1749255032839,-440.0,0.00019178,2]
[364821236,1749255032848,-430.0,0.00019178,2]
[364821237,1749255032859,-414.60086281,0.00019178,2]
[364821238,1749255032868,-483.51507084,0.00019178,2]
[364821240,1749255032878,-430.0,0.00019178,2]
[364821241,1749255032887,-453.83857874,0.00019178,2]
[364821242,1749255032898,-425.09329993,0.00019178,2]
[364821243,1749255032907,-504.98298771,0.00019178,2]
[364821244,1749255032917,-430.0,0.00019178,2]
[364821245,1749255032926,-430.0,0.00019178,2]
[364821246,1749255032937,-430.0,0.00019178,2]
[364821247,1749255032946,-500.0,0.00019178,2]
[364821248,1749255032956,-440.0,0.00019178,2]
[364821249,1749255032966,-440.0,0.00019178,2]
[364821250,1749255032975,-342.92169423,0.00019178,2]
[364821251,1749255032985,-430.0,0.00019178,2]
[364821252,1749255032994,-430.0,0.00019178,2]
[364821253,1749255033004,-430.0,0.00019178,2]
[364821254,1749255033013,-390.42739517,0.00019178,2]
[364821255,1749255033023,-440.0,0.00019178,2]